bitfinex-derivatives/quotes_ETHF0:USTF0_20260112
["timestamp","ask_amount","ask_price","bid_price","bid_amount"]
[1768235612774,1.94538722,3140.6,3139.3,0.15941]
[1768235613565,3.187,3140.6,3139.0,0.13556438]
[1768235613760,0.00354099,3141.0,3140.0,0.15937]
[1768235614064,1.28854099,3141.0,3140.0,0.15937]
[1768235614372,1.94538722,3140.9,3138.9,0.14640792]
[1768235614568,1.94538722,3140.9,3139.5,0.1594]
[1768235614778,1.94538722,3140.9,3139.6,0.15939]
[1768235615272,0.14203698,3140.8,3139.6,0.15939]
[1768235617380,0.14203698,3140.8,3138.9,0.14640792]
[1768235617573,1.285,3140.7,3139.6,0.15939]
[1768235618670,1.285,3140.7,3138.9,0.14640792]
[1768235618872,1.42703698,3140.7,3139.6,0.15939]
[1768235619576,0.14203698,3140.6,3139.6,0.15939]
[1768235619876,0.14203698,3140.6,3138.8,0.00409101]
[1768235620075,1.94538722,3140.3,3139.1,0.15942]
[1768235620578,0.14203698,3140.6,3139.3,0.15941]
[1768235620773,2.0874242,3140.3,3139.3,0.15941]
[1768235620977,0.14203698,3140.2,3138.8,0.00409101]
[1768235621667,0.14203698,3140.2,3138.9,0.15943]
[1768235621874,1.285,3140.1,3138.9,0.15943]
[1768235622874,1.285,3140.1,3139.0,0.15942]
[1768235623071,0.14203698,3140.7,3139.1,0.15942]
[1768235623273,3.188,3140.6,3139.1,0.15942]
[1768235623469,1.42803698,3140.5,3139.1,0.15942]
[1768235623783,0.14203698,3140.3,3138.8,0.00409101]
[1768235623978,0.14203698,3140.3,3139.1,0.15942]
[1768235624174,0.14203698,3140.3,3138.8,0.00409101]
[1768235624374,1.94538722,3140.4,3138.3,0.15946]
[1768235624375,2.0874242,3139.9,3138.3,0.15946]
[1768235624676,2.0874242,3139.9,3138.4,0.15945]
[1768235624677,0.14203698,3139.7,3138.4,0.15945]
[1768235625480,1.94538722,3139.4,3138.4,0.16279425]
[1768235625680,3.188,3139.3,3137.3,0.14640792]
[1768235625876,0.14203698,3139.2,3137.8,0.15948]
[1768235626073,1.94538722,3138.9,3137.8,0.15948]
[1768235626272,1.94538722,3138.4,3137.3,0.15951]
[1768235626476,2.0874242,3138.4,3136.8,1.22144119]
[1768235626682,0.14463916,3138.4,3137.1,0.15952]
[1768235626979,1.286,3138.3,3137.1,0.15952]
[1768235627179,1.94538722,3137.8,3135.5,0.05530934]
[1768235627370,0.14203698,3137.7,3136.3,0.15956]
[1768235627569,0.14203698,3137.7,3135.9,1.06448574]
[1768235627768,0.14203698,3137.5,3135.9,1.06448574]
[1768235627973,4.61603698,3137.4,3135.6,0.14640792]
[1768235628177,4.474,3137.4,3135.9,1.21089366]
[1768235628385,4.61603698,3137.4,3136.1,1.22405574]
[1768235628580,1.286,3137.3,3136.1,1.22405574]
[1768235628878,0.00260218,3138.4,3136.1,1.22405574]
[1768235628879,0.14203698,3137.9,3136.3,0.15956]
[1768235629077,4.474,3137.8,3136.3,0.15956]
[1768235629281,0.14203698,3137.2,3135.6,0.00357786]
[1768235629484,0.14203698,3137.2,3134.8,0.15964]
[1768235629485,1.94538722,3136.3,3134.8,0.15964]
[1768235629682,1.286,3136.2,3134.8,0.15964]
[1768235629876,1.286,3136.2,3135.0,1.06448574]
[1768235630076,1.286,3136.2,3134.9,0.15963]
[1768235630378,1.287,3136.1,3134.9,0.16261115]
[1768235630574,1.287,3136.0,3135.1,1.06448574]
[1768235630881,1.287,3136.0,3134.9,0.16261115]
[1768235631068,2.0874242,3135.8,3134.0,0.15968]
[1768235631275,0.00355068,3136.2,3134.3,0.15966]
[1768235631276,0.14203698,3135.6,3134.3,0.15966]
[1768235631471,1.9489379,3136.2,3134.5,0.15965]
[1768235631472,2.09097488,3136.2,3134.5,0.15965]
[1768235631668,4.476,3136.1,3134.5,0.15965]
[1768235631871,2.09097488,3136.2,3134.5,0.15965]
[1768235632085,2.09097488,3136.2,3134.5,0.1628477]
[1768235632279,0.00355068,3136.2,3134.8,0.15964]
[1768235632585,1.287,3136.1,3134.9,0.15963]
[1768235633081,3.23238722,3136.1,3134.9,0.15963]
[1768235633476,3.23238722,3136.1,3134.5,0.0031977]
[1768235634080,3.3744242,3136.1,3134.5,0.1628477]
[1768235634481,1.42903698,3136.1,3134.5,0.1628477]
[1768235634979,1.94538722,3135.4,3133.4,0.14640792]
[1768235635171,0.14203698,3135.3,3133.8,0.15969]
[1768235635376,0.14203698,3135.1,3133.8,0.15969]
[1768235635576,3.19,3135.0,3133.8,0.15969]
[1768235635982,0.14203698,3135.7,3133.9,0.15968]
[1768235636280,4.61903698,3135.6,3133.9,0.15968]
[1768235636482,3.19,3135.5,3133.9,0.14640792]
[1768235636682,1.287,3135.4,3133.8,0.00311297]
[1768235636985,0.14203698,3135.3,3133.8,0.16280297]
[1768235637877,1.287,3135.2,3133.8,0.16280297]
[1768235638079,0.14203698,3135.0,3133.8,0.16280297]
[1768235638379,3.191,3134.9,3133.8,0.16280297]
[1768235638681,1.287,3134.8,3133.8,0.00311297]
[1768235639082,1.287,3134.7,3133.8,0.00311297]
[1768235639678,0.14203698,3134.6,3133.4,0.15971]
[1768235639889,1.287,3134.7,3133.4,0.15971]
[1768235640074,4.478,3134.6,3133.4,0.15971]
[1768235640278,2.3784249,3135.6,3132.1,0.25003822]
[1768235640279,0.14203698,3135.6,3133.0,0.14640792]
[1768235640473,0.14203698,3136.1,3134.5,0.15965]
[1768235640678,4.478,3136.0,3134.5,0.00287256]
[1768235641076,22.342,3137.4,3134.5,0.00287256]
[1768235641077,3.191,3136.7,3135.3,0.15961]
[1768235641281,1.287,3136.4,3135.3,0.15961]
[1768235641889,1.287,3136.7,3135.4,6.15961]
[1768235642190,1.287,3136.7,3135.4,0.15961]
[1768235642391,0.14203698,3137.7,3135.4,6.14640792]
[1768235642594,3.192,3137.6,3136.1,0.15957]
[1768235642782,0.478,3137.5,3136.1,0.15957]
[1768235642981,0.478,3137.5,3135.5,0.14640792]
[1768235643283,3.19498595,3137.6,3135.5,0.14640792]
[1768235643284,0.00298595,3137.6,3136.4,0.15956]
[1768235643489,0.00298595,3137.6,3135.7,0.15959]
[1768235643686,0.53503698,3137.5,3135.7,0.15959]
[1768235643888,0.00298595,3137.6,3135.5,0.14640792]
[1768235644086,4.461,3137.5,3135.5,0.14640792]
[1768235644493,4.461,3137.5,3134.6,0.13911088]
[1768235644494,0.13321056,3137.4,3134.6,0.13911088]
[1768235644684,0.13321056,3137.4,3135.3,0.15961]
[1768235644890,0.13321056,3137.3,3135.4,0.15961]
[1768235645190,4.479,3137.2,3135.5,0.1596]
[1768235645395,1.287,3137.1,3135.1,0.13911088]
[1768235645582,0.00298595,3137.6,3136.1,0.15957]
[1768235645778,1.28998595,3137.6,3136.2,0.15957]
[1768235645989,1.28998595,3137.6,3136.3,0.15956]
[1768235646493,0.13321056,3137.5,3135.3,0.13911088]
[1768235646793,1.28998595,3137.6,3136.2,0.15957]
[1768235646794,0.00298595,3137.6,3136.2,0.15957]
[1768235646990,0.13321056,3137.4,3135.4,0.15961]
[1768235647697,4.61121056,3137.3,3135.4,0.15961]
[1768235647892,0.13321056,3137.2,3135.4,0.15961]
[1768235648395,0.13321056,3137.0,3135.4,0.15961]
[1768235648989,1.287,3136.9,3135.4,0.15961]
[1768235649188,0.13321056,3136.8,3134.7,0.13911088]
[1768235649384,0.13321056,3136.8,3134.8,0.15964]
[1768235649588,0.13321056,3136.8,3134.9,0.15963]
[1768235649792,0.13321056,3136.8,3135.0,0.15963]
[1768235650190,0.13321056,3136.8,3135.1,0.15962]
[1768235650394,0.13321056,3136.0,3134.5,0.00287256]
[1768235650596,0.13321056,3136.0,3133.5,0.13911088]
[1768235650895,0.13321056,3136.0,3134.1,0.15967]
[1768235651092,8.3188249,3136.1,3134.1,0.15967]
[1768235651093,4.61221056,3135.9,3134.1,0.15967]
[1768235651286,0.13321056,3135.9,3134.1,0.15967]
[1768235651488,4.479,3135.8,3134.1,0.16368714]
[1768235652190,0.13321056,3135.9,3134.5,0.15965]
[1768235652497,4.479,3135.8,3134.5,0.15965]
[1768235652698,4.61773176,3135.8,3134.5,0.15965]
[1768235652890,0.13873176,3135.7,3134.1,0.00401714]
[1768235653696,4.479,3135.6,3134.1,0.00401714]
[1768235653902,4.479,3135.6,3134.3,0.15966]
[1768235654588,0.13873176,3135.4,3133.1,0.14541014]
[1768235654788,4.479,3135.3,3133.8,0.15968]
[1768235654988,0.13873176,3135.4,3133.1,0.14541014]
[1768235655202,1.287,3135.2,3133.3,0.14541014]
[1768235655601,1.287,3135.1,3133.3,0.14917334]
[1768235655806,1.287,3135.1,3134.0,0.15967]
[1768235656195,0.13873176,3135.0,3133.3,0.0037632]
[1768235656399,0.13873176,3135.0,3133.3,0.1634732]
[1768235656699,1.287,3134.9,3133.7,0.15969]
[1768235656904,1.287,3134.8,3133.8,0.15969]
[1768235658194,0.13873176,3134.6,3132.3,0.14541014]
[1768235658409,0.13873176,3134.2,3132.1,0.15977]
[1768235658700,0.13873176,3134.2,3132.0,0.14541014]
[1768235658909,4.479,3134.1,3132.0,0.14541014]
[1768235659107,1.287,3134.0,3132.9,0.15973]
[1768235659408,0.13873176,3134.2,3132.9,0.15973]
[1768235659606,0.13873176,3134.0,3132.0,0.00408914]
[1768235659800,4.48,3133.9,3132.0,0.00408914]
[1768235660302,0.13873176,3134.0,3132.0,0.00408914]
[1768235660502,1.287,3134.0,3132.9,0.15974]
[1768235660799,0.13873176,3134.6,3132.1,0.14541014]
[1768235660990,0.13873176,3135.1,3133.3,0.15971]
[1768235661194,3.193,3134.8,3132.9,0.14541014]
[1768235661605,3.193,3134.8,3133.6,0.1597]
[1768235661794,1.287,3134.7,3133.6,0.1597]
[1768235662195,0.13873176,3134.6,3133.0,0.15973]
[1768235662797,4.48,3134.5,3133.0,0.15973]
[1768235663005,4.61873176,3134.5,3133.0,0.15973]
[1768235663606,4.48,3134.4,3133.0,0.15973]
[1768235664006,4.48,3134.3,3133.0,0.15973]
[1768235664202,3.193,3134.6,3133.2,0.15972]
[1768235664400,1.287,3134.4,3133.2,0.15972]
[1768235664597,0.13873176,3134.3,3132.0,0.14949928]
[1768235664810,0.13873176,3134.3,3132.9,0.15973]
[1768235665403,0.13873176,3134.3,3133.0,0.15973]
[1768235665705,3.193,3134.7,3132.8,0.14541014]
[1768235665905,1.287,3134.6,3133.4,0.15971]
[1768235666096,0.13873176,3134.9,3132.8,0.14541014]
[1768235666291,4.48,3134.8,3132.8,0.14541014]
[1768235666507,4.48,3134.8,3133.4,0.15971]
[1768235667402,4.61873176,3134.8,3133.4,0.15971]
[1768235667597,0.13873176,3134.7,3132.7,0.15974]
[1768235667803,0.13873176,3134.7,3132.8,0.15974]
[1768235668004,0.13873176,3134.7,3132.9,0.15973]
[1768235668201,0.13873176,3134.7,3132.3,0.14541014]
[1768235668607,3.193,3134.6,3133.6,0.1597]
[1768235668801,0.14259187,3135.2,3132.8,0.14541014]
[1768235669000,0.14259187,3135.2,3133.6,0.1597]
[1768235669001,4.481,3135.1,3133.6,0.1597]
[1768235670297,0.14259187,3135.2,3132.9,0.14541014]
[1768235670495,0.00386011,3135.2,3134.2,0.15967]
[1768235670703,1.29086011,3135.2,3134.2,0.16310756]
[1768235671302,0.00386011,3135.2,3134.3,0.15966]
[1768235672118,0.14259187,3135.2,3133.6,0.15969]
[1768235672614,0.14259187,3135.2,3132.8,0.14541014]
[1768235672813,0.14259187,3135.2,3133.8,0.15969]
[1768235673004,4.481,3135.1,3133.8,0.16354615]
[1768235673205,0.14259187,3135.2,3134.2,0.15967]
[1768235673206,0.00386011,3135.2,3134.2,0.15967]
[1768235673507,1.29086011,3135.2,3134.2,0.15967]
[1768235675110,1.43250993,3135.2,3133.8,0.00385615]
[1768235675314,0.14164982,3135.1,3133.8,0.00385615]
[1768235675516,4.48,3135.0,3133.8,0.00385615]
[1768235675712,0.00386011,3135.2,3134.1,0.15967]
[1768235676013,1.287,3135.1,3134.1,0.15967]
[1768235676414,0.00386011,3135.2,3134.2,0.15967]
[1768235677310,1.29086011,3135.2,3134.3,0.15966]
[1768235679415,0.14164982,3135.1,3133.8,0.00385615]
[1768235679604,0.14164982,3135.1,3133.5,0.1597]
[1768235679809,0.14164982,3135.0,3132.9,0.15973]
[1768235680109,0.14164982,3134.8,3132.9,0.15973]
[1768235680508,0.14164982,3134.8,3132.9,0.16266094]
[1768235680719,0.14164982,3134.8,3133.0,0.15973]
[1768235682116,0.14164982,3134.8,3133.1,0.15972]
[1768235682623,4.62164982,3134.7,3133.1,0.15972]
[1768235682814,0.14164982,3134.6,3133.1,0.15972]
[1768235683214,0.14164982,3134.6,3133.2,0.15972]
[1768235683411,6.04720879,3135.2,3133.2,0.15972]
[1768235683412,4.481,3134.5,3133.2,0.15972]
[1768235683621,4.62264982,3134.5,3133.2,0.15972]
[1768235685119,1.287,3134.4,3133.2,0.15972]
[1768235685721,0.14164982,3134.5,3133.4,0.15971]
[1768235685925,1.287,3134.4,3133.4,0.15971]
[1768235686420,0.14164982,3134.3,3132.9,0.00293094]
[1768235687119,0.14164982,3134.3,3131.9,1.07966391]
[1768235687317,0.14164982,3134.3,3132.5,0.15975]
[1768235687521,0.14164982,3134.1,3131.9,1.07966391]
[1768235687721,0.14164982,3134.1,3132.0,0.15978]
[1768235688318,0.14164982,3134.1,3132.1,0.15978]
[1768235688717,0.14164982,3134.1,3132.4,0.15976]
[1768235688922,0.14164982,3133.9,3132.4,0.15976]
[1768235689223,1.287,3133.8,3132.6,0.15975]
[1768235689421,1.42864982,3133.8,3132.6,0.15975]
[1768235689622,0.14164982,3133.7,3132.6,0.15975]
[1768235690122,0.14164982,3133.7,3132.0,0.00374504]
[1768235690319,0.14164982,3133.7,3132.0,0.16352504]
[1768235690823,0.14164982,3133.7,3132.0,0.00374504]
[1768235691619,0.14164982,3133.7,3132.3,0.15976]
[1768235691817,0.14164982,3133.7,3132.0,0.00374504]
[1768235691818,1.287,3133.6,3132.5,0.15975]
[1768235692018,0.14164982,3134.6,3132.6,0.15975]
[1768235692225,0.14164982,3134.4,3132.1,0.13303246]
[1768235692433,0.14164982,3134.4,3133.0,0.15973]
[1768235692624,4.481,3134.3,3133.0,0.15973]
[1768235693226,1.287,3134.2,3133.2,0.15972]
[1768235693621,3.194,3134.7,3133.3,0.15971]
[1768235693921,1.287,3134.4,3133.3,0.15971]
[1768235694512,0.14164982,3135.0,3133.4,0.15971]
[1768235694716,4.62264982,3134.9,3133.4,0.15971]
[1768235694912,0.14164982,3134.8,3133.4,0.15971]
[1768235695327,0.14164982,3134.6,3133.4,0.15971]
[1768235695919,0.14164982,3134.6,3132.6,0.13303246]
[1768235696119,0.14164982,3134.6,3132.1,0.13303246]
[1768235696425,0.14164982,3134.0,3132.5,0.15975]
[1768235696726,4.62264982,3133.9,3132.0,0.1367775]
[1768235697125,1.287,3133.8,3132.0,0.1367775]
[1768235697628,3.194,3134.1,3132.0,0.1367775]
[1768235697629,0.14164982,3134.4,3133.0,0.15973]
[1768235697824,4.481,3134.3,3133.0,0.15973]
[1768235698025,0.14164982,3134.4,3133.0,0.15973]
[1768235698222,1.287,3134.3,3133.0,0.15973]
[1768235698529,1.287,3134.6,3133.2,0.15972]
[1768235698718,0.14164982,3134.5,3133.2,0.15972]
[1768235700222,0.14164982,3134.3,3133.2,0.15972]
[1768235700423,0.14164982,3134.0,3132.6,0.15975]
[1768235701025,0.14164982,3134.0,3132.7,0.15974]
[1768235701426,1.287,3133.9,3132.7,0.15974]
[1768235701626,0.14164982,3134.0,3132.7,0.15974]
[1768235701823,1.287,3134.1,3133.0,0.15973]
[1768235702021,0.14164982,3134.5,3132.2,1.9582161]
[1768235702226,3.35048011,3135.2,3132.8,0.13303246]
[1768235702227,3.194,3134.9,3132.8,0.13303246]
[1768235702425,4.481,3134.9,3132.8,0.13303246]
[1768235702726,0.00386011,3135.2,3133.2,1.9582161]
[1768235702926,1.1e-07,3135.2,3133.7,2.09124856]
[1768235703134,1.1e-07,3135.2,3134.7,0.15964]
[1768235703336,4.481,3135.9,3134.9,0.15963]
[1768235703634,0.14164982,3136.9,3134.3,0.13303246]
[1768235703830,0.14164982,3136.7,3135.0,0.15962]
[1768235704137,0.14164982,3137.3,3136.1,0.15957]
[1768235704320,0.14429646,3137.3,3136.1,0.16330912]
[1768235704727,0.00264664,3137.3,3136.1,2.09833306]
[1768235704928,0.14490049,3138.4,3137.0,0.15953]
[1768235705230,0.14490049,3138.9,3136.6,1.9582161]
[1768235705425,0.14490049,3138.9,3137.2,0.15951]
[1768235705831,0.00378099,3138.9,3137.6,0.15949]
[1768235706038,0.00378099,3138.9,3136.9,0.13637784]
[1768235706427,0.00378099,3138.9,3137.3,1.9582161]
[1768235706637,0.00378099,3138.9,3137.8,0.15948]
[1768235707028,0.00378099,3138.9,3136.9,0.29590784]
[1768235707234,0.14868148,3138.9,3136.9,0.15953]
[1768235707438,0.14490049,3138.4,3136.3,0.13637784]
[1768235707637,0.14490049,3138.4,3136.1,0.00373912]
[1768235708032,0.14490049,3138.4,3136.1,0.16330912]
[1768235710231,0.14490049,3138.4,3136.2,0.15957]
[1768235712636,0.13832392,3137.9,3136.2,0.15957]
[1768235712842,0.13832392,3137.7,3136.2,0.15957]
[1768235713047,0.13832392,3138.1,3136.3,0.15956]
[1768235713337,0.13832392,3138.1,3136.1,0.00373912]
[1768235713642,0.13832392,3138.4,3136.5,0.15955]
[1768235713840,0.13832392,3137.9,3136.5,0.15955]
[1768235714040,0.13832392,3137.9,3136.1,0.00373912]
[1768235715746,0.13832392,3137.8,3136.1,0.00373912]
[1768235716541,1.42432392,3137.8,3136.1,0.00373912]
[1768235716737,0.13832392,3137.2,3135.1,0.15962]
[1768235716941,0.13832392,3137.2,3135.3,0.15961]
[1768235717544,0.13832392,3137.2,3135.0,0.14664442]
[1768235717753,3.474,3137.6,3135.3,2.10486052]
[1768235717948,3.474,3137.6,3135.9,0.15958]
[1768235718142,3.61232392,3137.6,3135.9,0.15958]
[1768235718545,0.13832392,3137.5,3135.3,0.00279892]
[1768235718753,3.474,3137.6,3135.3,0.00279892]
[1768235718754,0.13832392,3137.1,3135.3,0.00279892]
[1768235719345,0.13832392,3137.1,3135.4,0.15961]
[1768235720249,0.13832392,3137.1,3135.3,0.00279892]
[1768235720448,0.13832392,3137.7,3135.9,0.15958]
[1768235720751,0.13832392,3137.4,3135.9,0.15958]
[1768235721749,0.13832392,3138.5,3136.1,2.10486052]
[1768235722053,3.19478099,3138.9,3136.1,2.10486052]
[1768235722054,0.13832392,3138.0,3136.1,0.15957]
[1768235722250,0.13832392,3138.0,3136.2,0.15957]
[1768235722451,0.13832392,3138.0,3136.3,0.15956]
[1768235723449,0.13832392,3138.0,3135.6,0.14664442]
[1768235723652,3.32932392,3138.3,3136.7,0.15954]
[1768235723852,0.13832392,3138.3,3136.0,0.14664442]
[1768235724057,0.13832392,3138.8,3137.7,0.15949]
[1768235724362,0.13832392,3138.8,3137.7,0.16277711]
[1768235725757,0.13832392,3138.8,3137.7,0.00328711]
[1768235725953,0.13832392,3138.5,3137.0,0.15953]
[1768235726958,0.13832392,3138.5,3137.0,0.16223745]
[1768235727155,0.13832392,3138.5,3137.2,0.15951]
[1768235727463,1.285,3138.5,3137.0,0.00270745]
[1768235727652,1.285,3138.6,3137.5,0.1595]
[1768235728053,0.13832392,3138.5,3137.5,0.1595]
[1768235730170,0.00378099,3138.9,3137.5,0.1595]
[1768235730466,1.285,3138.4,3137.5,0.1595]
[1768235731771,1.96199709,3138.9,3137.5,0.1595]
[1768235731772,0.00378099,3138.9,3137.5,0.1595]
[1768235731971,1.285,3138.6,3137.5,0.1595]
[1768235732873,1.42332392,3138.6,3137.5,0.1595]
[1768235733074,0.13832392,3138.5,3137.5,0.1595]
[1768235733667,0.13832392,3138.4,3137.0,0.00270745]
[1768235734475,0.13832392,3138.4,3137.0,0.16223745]
[1768235735065,4.61180978,3138.3,3137.0,0.16223745]
[1768235735273,0.13680978,3138.2,3137.0,0.16223745]
[1768235736371,1.9582161,3138.7,3137.0,0.00270745]
[1768235736578,3.19,3138.6,3137.7,0.15949]
[1768235736975,3.32680978,3138.6,3137.7,0.15949]
[1768235737372,0.13680978,3138.5,3137.1,0.15952]
[1768235737674,0.13680978,3138.5,3136.2,0.15957]
[1768235737675,0.13680978,3137.5,3136.2,0.15957]
[1768235737881,1.285,3137.4,3136.2,0.15957]
[1768235738573,1.285,3137.4,3136.3,0.15956]
[1768235739482,1.285,3137.3,3136.3,0.15956]
[1768235746888,0.13680978,3137.5,3136.4,0.15956]
[1768235747189,4.476,3137.4,3136.4,0.15956]
[1768235749478,0.13680978,3137.3,3136.4,0.15956]
[1768235750689,1.285,3137.3,3136.5,0.15955]
[1768235750881,1.285,3137.5,3136.2,6.00228168]
[1768235751080,0.13680978,3138.4,3136.4,0.13952759]
[1768235751275,0.13680978,3138.2,3136.8,0.15953]
[1768235751486,0.13680978,3138.0,3136.2,0.16185168]
[1768235753485,0.13680978,3137.8,3136.2,0.16185168]
[1768235753690,4.61380978,3137.7,3136.2,0.16185168]
[1768235753880,0.13680978,3137.6,3136.2,0.16185168]
[1768235754286,0.13680978,3137.6,3136.3,0.15956]
[1768235754792,1.286,3137.5,3136.3,0.15956]
[1768235755392,0.13680978,3137.6,3136.2,0.00228168]
[1768235755686,0.13680978,3138.1,3136.2,0.00228168]
[1768235755886,4.477,3138.0,3136.8,0.15954]
[1768235756193,0.13680978,3138.1,3136.9,0.15953]
[1768235756490,1.286,3137.9,3137.0,0.15953]
[1768235756880,0.13680978,3138.6,3137.2,0.15952]
[1768235757189,0.13680978,3138.6,3136.2,0.14180927]
[1768235757190,4.477,3138.5,3137.3,0.15951]
[1768235757786,0.29626978,3138.4,3136.2,0.00228168]
[1768235757986,0.13680978,3138.3,3136.2,0.00228168]
[1768235758586,0.13680978,3138.3,3136.7,0.15954]
[1768235758796,0.13680978,3138.1,3136.7,0.15954]
[1768235759795,0.13680978,3137.9,3136.7,0.15954]
[1768235760498,0.13680978,3137.9,3136.2,0.00228168]
[1768235761994,0.13680978,3137.6,3135.5,0.1596]
[1768235762290,0.13680978,3137.6,3135.6,0.1596]
[1768235762594,0.13680978,3137.4,3135.2,0.13952759]
[1768235762793,0.13680978,3138.0,3135.8,0.13952759]
[1768235763091,4.61380978,3137.9,3136.5,0.15955]
[1768235763289,1.286,3137.8,3135.8,0.14229796]
[1768235763494,1.286,3137.8,3136.0,0.13952759]
[1768235763694,1.286,3137.8,3136.9,0.15953]
[1768235763995,3.191,3138.8,3137.5,0.1595]
[1768235764196,1.286,3138.3,3137.5,0.1595]
[1768235764991,0.14059077,3138.9,3137.5,0.1595]
[1768235765191,4.477,3138.8,3137.5,0.1595]
[1768235765391,0.14059077,3138.9,3137.5,0.1595]
[1768235765592,4.477,3138.8,3137.4,0.1595]
[1768235766495,0.14679389,3138.7,3137.4,0.1595]
[1768235767296,1.286,3138.6,3137.4,0.1595]
[1768235768799,0.14679389,3138.5,3136.2,0.13351145]
[1768235768999,0.14679389,3138.5,3136.8,0.15954]
[1768235769196,0.14679389,3138.3,3136.8,0.15954]
[1768235770701,0.14679389,3138.3,3135.8,0.00277037]
[1768235771007,0.14679389,3138.3,3135.8,0.13628182]
[1768235771903,1.286,3138.2,3137.2,0.15952]
[1768235772607,1.42541246,3138.2,3137.2,0.15952]
[1768235773704,0.13941246,3138.1,3137.2,0.15952]
[1768235774902,0.13941246,3138.1,3135.9,0.13594618]
[1768235775210,0.13941246,3138.1,3136.5,0.15955]
[1768235775401,0.13941246,3138.1,3136.6,0.15955]
[1768235776506,0.13941246,3138.1,3136.0,0.15957]
[1768235776698,0.13941246,3137.7,3136.0,0.15957]
[1768235777304,0.13941246,3137.6,3136.0,0.15957]
[1768235778112,0.13941246,3137.4,3135.8,0.00277037]
[1768235778407,0.13941246,3137.2,3135.8,0.00277037]
[1768235778798,4.477,3137.1,3135.8,0.00277037]
[1768235779613,4.478,3137.0,3135.8,0.16236037]
[1768235781609,1.287,3136.9,3135.9,0.15958]
[1768235782102,0.13941246,3137.8,3135.8,0.00277037]
[1768235782311,3.191,3137.7,3136.4,0.15956]
[1768235782511,1.287,3137.6,3136.4,0.15956]
[1768235782699,0.13941246,3137.5,3136.4,0.15956]
[1768235782907,0.13941246,3137.5,3135.8,0.16236037]
[1768235785610,0.13941246,3137.3,3135.8,0.16236037]
[1768235786001,4.479,3137.2,3135.8,0.16236037]
[1768235787113,4.61841246,3137.2,3135.8,0.16236037]
[1768235787616,0.13941246,3137.1,3135.8,0.16236037]
[1768235788716,1.288,3137.0,3135.8,0.16236037]
[1768235789614,1.288,3137.0,3135.9,0.15958]
[1768235789814,1.288,3136.9,3136.1,0.15957]
[1768235790709,0.13941246,3136.8,3135.8,0.00277037]
[1768235791113,0.13941246,3136.8,3135.0,0.15963]
[1768235791312,0.13941246,3136.8,3134.2,0.13594618]
[1768235791313,0.13941246,3136.3,3134.4,0.15966]
[1768235791709,0.13941246,3136.3,3134.7,0.15964]
[1768235792014,1.288,3136.2,3134.9,0.15963]
[1768235792216,1.288,3136.2,3135.0,0.15963]
[1768235792516,0.14355413,3136.3,3135.0,0.15963]
[1768235792818,0.00414167,3136.3,3135.2,0.15962]
[1768235793117,1.288,3136.2,3135.3,0.15961]
[1768235798320,0.14673772,3136.1,3134.7,0.00382226]
[1768235799225,0.14673772,3136.1,3134.8,0.15964]
[1768235799418,0.14673772,3136.1,3134.9,0.15963]
[1768235800725,0.14673772,3136.1,3134.7,0.00382226]
[1768235800927,0.14673772,3135.9,3134.7,0.00382226]
[1768235801415,1.288,3135.8,3134.7,0.00382226]
[1768235802222,0.00414167,3136.3,3134.7,0.00382226]
[1768235802223,3.19614167,3136.3,3134.7,0.00382226]
[1768235802418,1.288,3136.2,3134.7,0.00382226]
[1768235802721,1.288,3136.2,3135.1,0.15962]
[1768235802918,1.288,3136.2,3135.4,0.15961]
[1768235803120,0.14673772,3136.1,3134.7,0.00382226]
[1768235804926,0.14673772,3136.0,3133.6,0.1597]
[1768235805126,0.14673772,3135.8,3133.6,0.1597]
[1768235805425,0.14673772,3135.5,3133.6,0.1597]
[1768235805815,0.14673772,3135.3,3133.6,0.1597]
[1768235806019,0.14673772,3135.1,3133.6,0.16214887]
[1768235806220,3.192,3135.0,3133.6,0.16214887]
[1768235807230,0.14673772,3134.9,3133.6,0.16214887]
[1768235807418,0.14673772,3134.9,3132.2,0.13471049]
[1768235808030,0.14673772,3134.9,3132.2,0.39176127]
[1768235808327,0.14673772,3134.9,3133.1,0.15972]
[1768235808527,0.14673772,3134.9,3133.1,0.16293646]
[1768235811826,0.14673772,3134.7,3133.1,0.16293646]
[1768235814829,0.14673772,3134.7,3133.1,0.00321646]
[1768235815433,3.193,3134.6,3133.1,0.00321646]
[1768235815729,0.14673772,3134.7,3133.3,0.15971]
[1768235815932,1.288,3134.6,3133.3,0.15971]
[1768235816134,1.288,3134.5,3133.1,0.00321646]
[1768235817624,1.288,3134.5,3133.5,0.1597]
[1768235818131,0.14673772,3135.2,3133.5,0.1597]
[1768235818326,4.62773772,3135.1,3133.5,0.1597]
[1768235818538,0.14673772,3134.9,3133.5,0.1597]
[1768235819033,3.195,3135.3,3133.1,0.00321646]
[1768235819034,0.14673772,3135.4,3133.7,0.15969]
[1768235819336,0.14673772,3135.2,3133.7,0.15969]
[1768235820637,0.14673772,3135.7,3133.6,0.13471049]
[1768235820933,4.482,3135.6,3134.2,0.15967]
[1768235821236,0.14673772,3135.5,3134.2,0.15967]
[1768235822333,1.288,3135.4,3133.7,0.13471049]
[1768235823539,1.288,3135.4,3134.2,0.15967]
[1768235823740,0.14673772,3136.0,3134.0,0.13471049]
[1768235823930,0.14673772,3135.8,3134.6,0.15965]
[1768235824131,0.14673772,3135.8,3134.0,0.15967]
[1768235824333,1.288,3135.9,3134.0,0.15967]
[1768235824334,0.14223755,3135.5,3134.0,0.15967]
[1768235824726,0.14223755,3135.5,3133.1,0.00321646]
[1768235825037,0.14223755,3135.5,3133.6,0.1597]
[1768235825539,0.14223755,3135.5,3133.7,0.15969]
[1768235826236,1.288,3135.4,3134.1,0.15967]
[1768235826927,1.288,3135.4,3133.1,0.00321646]
[1768235826928,0.14223755,3135.0,3133.1,0.00321646]
[1768235827131,0.14223755,3134.5,3133.1,0.00321646]
[1768235827338,4.62323755,3134.4,3133.1,0.00321646]
[1768235828043,0.14223755,3134.3,3133.1,0.00321646]
[1768235831234,0.14223755,3134.0,3133.1,0.00321646]
[1768235831436,0.14499974,3134.0,3132.3,0.15976]
[1768235831639,0.14499974,3134.0,3131.9,1.07966391]